account_party,address,code,date,document_number,expense_code_name,expense_code_name_short,id,party_cell,party_cell_code,party_cell_geoobject,purpose,source_bank_account_number,source_bank_account_type,sum,target_legal_personality,target_legal_personality_code,target_type
Справедливість,"Київ, вулиця Миколи Лєскова, 9",70,2017-12-30,bn,Банківські послуги,Інші витрати,48398,Центральний офіс,39688832,Україна,Комісія за ведення поточних рахунків ,26000532822,current,250.00,"АТ ""Райффайзен банк Аваль""",14305909,юридична особа
Справедливість,"Київ, вулиця Миколи Лєскова, 9",70,2017-12-28,bn,Банківські послуги,Інші витрати,48444,Центральний офіс,39688832,Україна,Комісія за ведення поточних рахунків,26000532822,current,250.00,"АТ ""Райффайзен банк Аваль""",14305909,юридична особа
Справедливість,"Київ, вулиця Миколи Лєскова, 9",70,2017-12-28,bn,Банківські послуги,Інші витрати,48443,Центральний офіс,39688832,Україна,Комісія за вихідні перекази,26000532822,current,66.00,"АТ ""Райффайзен банк Аваль""",14305909,юридична особа
Справедливість,"Івано-Франківська область, Івано-Франківськ, вулиця Галицька, 22",50,2017-12-28,112,Оплата ефірного часу на радіо,Реклама на радіо,48442,Центральний офіс,39688832,Україна,"Рекламні послуги на радіо ""Вежа""",26000532822,current,896.00,"КП ""Івано-Франківське міське КП ""Телерадіокомпанія ""Вежа""",30107672,юридична особа
Справедливість,"Київ, бульвар Тараса Шевченка, 18",76,2017-12-28,107,Послуги зв’язку,Послуги зв’язку,48441,Центральний офіс,39688832,Україна,За послуги інтернет,26000532822,current,214.20,"ПАТ ""Укртелеком""",21560766,юридична особа
Справедливість,"Полтавська область, Полтава, вулиця Комарова, 2А",79,2017-12-28,106,"Оренда будинків і приміщень та експлуатаційні витрати (прибирання, страхування орендованих будинків, охорона, сигналізація, ремонт, вивіз сміття, тощо)",Оренда нерухомості,48440,Центральний офіс,39688832,Україна,За теплову енергію,26000532822,current,727.84,"ПОКВПП ""Полтаватеплоенерго""",03338030,юридична особа
Справедливість,"Полтавська область, Полтава, вулиця Пушкіна, 115",79,2017-12-28,105,"Оренда будинків і приміщень та експлуатаційні витрати (прибирання, страхування орендованих будинків, охорона, сигналізація, ремонт, вивіз сміття, тощо)",Оренда нерухомості,48439,Центральний офіс,39688832,Україна,Відшкодування витрат за воду та водовідведення,26000532822,current,10.16,"ПП ""Зоря Полтавщини""",02474794,юридична особа
Справедливість,"Полтавська область, Полтава, вулиця Пушкіна, 115",79,2017-12-28,104,"Оренда будинків і приміщень та експлуатаційні витрати (прибирання, страхування орендованих будинків, охорона, сигналізація, ремонт, вивіз сміття, тощо)",Оренда нерухомості,48438,Центральний офіс,39688832,Україна,Відшкодування витрат за електоенергію,26000532822,current,161.34,"ПП ""Зоря Полтавщини""",02474794,юридична особа
Справедливість,"Полтавська область, Полтава, вулиця Пушкіна, 115",79,2017-12-28,103,"Оренда будинків і приміщень та експлуатаційні витрати (прибирання, страхування орендованих будинків, охорона, сигналізація, ремонт, вивіз сміття, тощо)",Оренда нерухомості,48437,Центральний офіс,39688832,Україна,За оренду приміщення у грудні 2017 згідно з договором від 22.09.2017 №167,26000532822,current,1073.71,Управління майном Полтавської облради,24386961,юридична особа
Справедливість,"Полтавська область, Полтава, вулиця Кагамлика, 84",79,2017-12-28,102,"Оренда будинків і приміщень та експлуатаційні витрати (прибирання, страхування орендованих будинків, охорона, сигналізація, ремонт, вивіз сміття, тощо)",Оренда нерухомості,48436,Центральний офіс,39688832,Україна,За вивезення побутових відходів 09-12.2017,26000532822,current,6.06,Полтавське автотранспортне КП 1628,03351823,юридична особа
Справедливість,"Київ, вулиця Академіка Туполєва, 28А",61,2017-12-27,101,Військовий збір,Податкові платежі,48435,Центральний офіс,39688832,Україна,"ВЗ по договору купівлі-продажу від 21.12.2017, утрим. з Войтюка Р.В.",26000532822,current,52.50,УДКСУ у Шевченківському районі м. Києва,37995466,юридична особа
Справедливість,"Київ, вулиця Академіка Туполєва, 28А",63,2017-12-27,100,Податок на доходи,Податкові платежі,48434,Центральний офіс,39688832,Україна,"ПДФО по договору купівлі-продажу від 21.12.2017, утрим. з Войтюка Р.В.",26000532822,current,630.00,УДКСУ у Шевченківському районі м. Києва,37995466,юридична особа
Справедливість,,48,2017-12-27,99,Публікування матеріалів у мережі Інтернет,Реклама в інтернеті,48386,Центральний офіс,39688832,Україна,Купівля сайту згідно з договором купівлі-продажу від 21.12.2017,26000532822,current,2817.50,Войтюк Руслан Васильович,,фізична особа
Справедливість,"Черкаська область, Черкаси, вулиця Хрещатик, 193",79,2017-12-22,98,"Оренда будинків і приміщень та експлуатаційні витрати (прибирання, страхування орендованих будинків, охорона, сигналізація, ремонт, вивіз сміття, тощо)",Оренда нерухомості,48433,Центральний офіс,39688832,Україна,Оренда приміщення за грудень 2017 згідно умов договору від 01.09.20017 №2,26000532822,current,5572.25,"ТОВ ""Юридична компанія ""Право, бізнес і фінанси""",40722237,юридична особа
Справедливість,,53,2017-12-22,97,Витрати на розміщення зовнішньої реклами,Зовнішня реклама,48385,Центральний офіс,39688832,Україна,Розміщення зовнішньої політичної реклами,26000532822,current,3570.00,Атамась Ольга Андріївна,,фізична особа
Справедливість,"Закарпатська область, Ужгород, пл. Поштова, 4",75,2017-12-18,96,Поштові послуги та поширення друкованих матеріалів,Поштові послуги та поширення друкованих матеріалів,48432,Центральний офіс,39688832,Україна,За послуги безадресної доставки інформаційної продукції,26000532822,current,5808.00,"Закарпатська дирекція ПАТ ""Укрпошта""",20454128,юридична особа
Справедливість,"Київ, вулиця Старовокзальна, 7В, 18",79,2017-12-15,95,"Оренда будинків і приміщень та експлуатаційні витрати (прибирання, страхування орендованих будинків, охорона, сигналізація, ремонт, вивіз сміття, тощо)",Оренда нерухомості,48431,Центральний офіс,39688832,Україна,Оренда приміщення за  жовтень 2017 згідно умов договору від 21.09.2017 №13,26000532822,current,23257.50,"ТОВ ""ВВ Інвест""",32455634,юридична особа
Справедливість,"Київ, вулиця Старовокзальна, 7В, 18",79,2017-12-15,94,"Оренда будинків і приміщень та експлуатаційні витрати (прибирання, страхування орендованих будинків, охорона, сигналізація, ремонт, вивіз сміття, тощо)",Оренда нерухомості,48430,Центральний офіс,39688832,Україна,Оренда приміщення за  листопад 2017 згідно умов договору від 21.09.2017 №12,26000532822,current,28726.42,"ТОВ ""ВВ Інвест""",32455634,юридична особа
Справедливість,"Київ, вулиця Старовокзальна, 7В, 18",79,2017-12-15,93,"Оренда будинків і приміщень та експлуатаційні витрати (прибирання, страхування орендованих будинків, охорона, сигналізація, ремонт, вивіз сміття, тощо)",Оренда нерухомості,48429,Центральний офіс,39688832,Україна,Оренда приміщення за листопад 2017 згідно умов договору від 27.12.2016 №4,26000532822,current,39475.92,"ТОВ ""ВВ Інвест""",32455634,юридична особа
Справедливість,"Черкаська область, Черкаси, вулиця Хрещатик, 193",79,2017-12-15,92,"Оренда будинків і приміщень та експлуатаційні витрати (прибирання, страхування орендованих будинків, охорона, сигналізація, ремонт, вивіз сміття, тощо)",Оренда нерухомості,48428,Центральний офіс,39688832,Україна,Оренда приміщення за листопад 2017 згідно умов договору від 01.09.20017 №2,26000532822,current,5572.25,"ТОВ ""Юридична компанія ""Право, бізнес і фінанси""",40722237,юридична особа
Справедливість,"Львівська область, Львів, вулиця Шевченка, 7",79,2017-12-14,91,"Оренда будинків і приміщень та експлуатаційні витрати (прибирання, страхування орендованих будинків, охорона, сигналізація, ремонт, вивіз сміття, тощо)",Оренда нерухомості,48427,Центральний офіс,39688832,Україна,Орендна плата за листопад 2017 згідно з догвором від 01.10.2017,26000532822,current,2500.00,Обʼєднання профспілок Львівщини,05505801,юридична особа
Справедливість,"Львівська область, Львів, вулиця Шевченка, 7",79,2017-12-14,90,"Оренда будинків і приміщень та експлуатаційні витрати (прибирання, страхування орендованих будинків, охорона, сигналізація, ремонт, вивіз сміття, тощо)",Оренда нерухомості,48426,Центральний офіс,39688832,Україна,Орендна плата за жовтень 2017 згідно з догвором від 01.10.2017,26000532822,current,2676.50,Обʼєднання профспілок Львівщини,05505801,юридична особа
Справедливість,"Чернівецька область, Чернівці",58,2017-12-12,89,"Виготовлення друкованих матеріалів (плакатів, листівок, буклетів та інших агітаційних матеріалів)",Друкована агітація,48384,Центральний офіс,39688832,Україна,"Друк газети ""Справи Справедливості"" згідно з договором від 08.12.2017",26000532822,current,23400.00,Зволейко Артур Леонідович,3216318018,фізична особа
Справедливість,"Чернівецька область, Чернівці",58,2017-12-11,88,"Виготовлення друкованих матеріалів (плакатів, листівок, буклетів та інших агітаційних матеріалів)",Друкована агітація,48383,Центральний офіс,39688832,Україна,"Друк газети ""Справи Справедливості"" згідно з договором від 08.12.2017",26000532822,current,53200.00,Зволейко Артур Леонідович,3216318018,фізична особа
Справедливість,,53,2017-12-11,55,Витрати на розміщення зовнішньої реклами,Зовнішня реклама,48382,Центральний офіс,39688832,Україна,Розміщення зовнішньої політичної реклами,26000532822,current,2335.00,Атамась Ольга Андріївна,,фізична особа
Справедливість,"Полтавська область, Полтава, вулиця Комарова, 2А",79,2017-12-08,82,"Оренда будинків і приміщень та експлуатаційні витрати (прибирання, страхування орендованих будинків, охорона, сигналізація, ремонт, вивіз сміття, тощо)",Оренда нерухомості,48425,Центральний офіс,39688832,Україна,За теплову енергію,26000532822,current,669.87,"ПОКВПП ""Полтаватеплоенерго""",03338030,юридична особа
Справедливість,"Полтавська область, Полтава, вулиця Пушкіна, 115",60,2017-12-08,77,Інші податки,Податкові платежі,48424,Центральний офіс,39688832,Україна,Відшкодування земельного податку,26000532822,current,115.11,Управління майном Полтавської облради,24386961,юридична особа
Справедливість,"Полтавська область, Полтава, вулиця Пушкіна, 115",79,2017-12-08,80,"Оренда будинків і приміщень та експлуатаційні витрати (прибирання, страхування орендованих будинків, охорона, сигналізація, ремонт, вивіз сміття, тощо)",Оренда нерухомості,48423,Центральний офіс,39688832,Україна,Відшкодування витрат за воду та водовідведення,26000532822,current,6.58,"ПП ""Зоря Полтавщини""",02474794,юридична особа
Справедливість,"Полтавська область, Полтава, вулиця Пушкіна, 115",79,2017-12-08,80,"Оренда будинків і приміщень та експлуатаційні витрати (прибирання, страхування орендованих будинків, охорона, сигналізація, ремонт, вивіз сміття, тощо)",Оренда нерухомості,48422,Центральний офіс,39688832,Україна,Відшкодування витрат за електоенергію,26000532822,current,157.26,"ПП ""Зоря Полтавщини""",02474794,юридична особа
Справедливість,"Полтавська область, Полтава, вулиця Пушкіна, 115",79,2017-12-08,78,"Оренда будинків і приміщень та експлуатаційні витрати (прибирання, страхування орендованих будинків, охорона, сигналізація, ремонт, вивіз сміття, тощо)",Оренда нерухомості,48421,Центральний офіс,39688832,Україна,За оренду приміщення у листопаді 2017 згідно з договором від 22.09.2017 №167,26000532822,current,1064.14,Управління майном Полтавської облради,24386961,юридична особа
Справедливість,"Полтавська область, Полтава, вулиця Пушкіна, 115",79,2017-12-08,77,"Оренда будинків і приміщень та експлуатаційні витрати (прибирання, страхування орендованих будинків, охорона, сигналізація, ремонт, вивіз сміття, тощо)",Оренда нерухомості,48420,Центральний офіс,39688832,Україна,За оренду приміщення у вересні-жовтні 2017 згідно з договором від 22.09.2017 №167,26000532822,current,1360.76,Управління майном Полтавської облради,24386961,юридична особа
Справедливість,"Сумська область, Охтирка, провулок Сумський",49,2017-12-08,86,Публікування матеріалів у друкованих ЗМІ,Реклама в друкованих ЗМІ,48419,Центральний офіс,39688832,Україна,Публікація в газеті,26000532822,current,305.50,"КП ""Прапор перемоги""",02475121,юридична особа
Справедливість,"Київ, вулиця Кирилівська, 102",72,2017-12-07,85,"Придбання, ремонт офісної техніки та програмного забезпечення (Бухгалтерські програми, Ліга.закон, домени)",Придбання офісної техніки та програмного забезпечення,48418,Центральний офіс,39688832,Україна,"За обробку даних для видачі ключів ЕПЦ та постачання КП ""Програмний комплекс ""FREEDOM""",26000532822,current,349.00,"ТОВ ""Центр сертифікації ключів ""Україна""",36865753,юридична особа
Справедливість,"Одеська область, Одеса, вулиця Мала Арнаутська, 66",76,2017-12-06,84,Послуги зв’язку,Послуги зв’язку,48417,Центральний офіс,39688832,Україна,За послуги зв'язку,26000532822,current,22.00,"ТОВ ""Інтернаціональні телекомунікації""",30109015,юридична особа
Справедливість,"Київ, вулиця Велика Васильківська, 66Б",76,2017-12-06,76,Послуги зв’язку,Послуги зв’язку,48416,Центральний офіс,39688832,Україна,За послуги інтернет,26000532822,current,2500.00,"ТОВ ""Українські оптичні системи""",33883130,юридична особа
Справедливість,"Чернігівська область, Чернігів",79,2017-12-05,75,"Оренда будинків і приміщень та експлуатаційні витрати (прибирання, страхування орендованих будинків, охорона, сигналізація, ремонт, вивіз сміття, тощо)",Оренда нерухомості,48415,Центральний офіс,39688832,Україна,Оренда приміщення за  жовтень-грудень  2017 згідно умов договору від 01.10.2017.,26000532822,current,5928.00,"ТОВ ""Науково-виробнича комерційна фірма ""Кронтекс ЛТД""",22815470,юридична особа
Справедливість,"Київ, вулиця Михайла Грушевського, 1Д",70,2017-12-01,AS7bu82prp,Банківські послуги,Інші витрати,48471,Рівненська обласна організація,40017968,Рівненська область,"Комiсiя за обслуговування рахунку липень 2016р. згiдно договору банкiвського рахунку вiд 24.09.2015, без ПДВ ",26006054726027,current,100.00,"ПАТ КБ ""Приватбанк""",14360570,юридична особа
Справедливість,"Рівненська область, Рівне, вулиця Поштова, 2",49,2017-12-01,платіжне доручення  No 85,Публікування матеріалів у друкованих ЗМІ,Реклама в друкованих ЗМІ,48470,Рівненська обласна організація,40017968,Рівненська область,"Оплата згiдно рах N 590 вiд 22.11.2017 р. за розм оголош в газетi "" 7 днiв"" N 41 вiд 12.10.2017 Без ПДВ ",26006054726027,current,500.00,"КП ""РГ ""Сім днів"" РМР",21081712,юридична особа
Справедливість,"Київ, вулиця Михайла Грушевського, 1Д",70,2017-12-01,C1O0KZZKFY,Банківські послуги,Інші витрати,48469,Рівненська обласна організація,40017968,Рівненська область,"Комiсiя за обслуговування рахунку серпень 2017р. згiдно договору банкiвського рахунку вiд 22.11.2016, без ПДВ",26006054726027,current,3.00,"ПАТ КБ ""Приватбанк""",14360570,юридична особа
Справедливість,,49,2017-12-01,платіжне доручення  No 84,Публікування матеріалів у друкованих ЗМІ,Реклама в друкованих ЗМІ,48452,Рівненська обласна організація,40017968,Рівненська область,Оплата згiдно рахунку N 506 вiд 19.10.2017 р. за Iнформацiйнi послуги в г-тах Рiвне вечiрнє та Рiвне експрес Без ПДВ ,26006054726027,current,3500.00,Кулик Тарас Григорович,,фізична особа
Справедливість,"Рівненська область, Рівне, вулиця Князя Володимира, 77",79,2017-11-30,платіжне доручення  No 87,"Оренда будинків і приміщень та експлуатаційні витрати (прибирання, страхування орендованих будинків, охорона, сигналізація, ремонт, вивіз сміття, тощо)",Оренда нерухомості,48468,Рівненська обласна організація,40017968,Рівненська область,"Оплата згiдно рах N 8728629521 вiд 30.11.2017 р. за позачергову технiчну перевiрку засоб обл. особ рахунок 270062496. У сумi 316.86 грн., ПДВ - 20 % 63.37 грн. ",26009054717583,current,380.23,Рівнеобленерго,05424874,юридична особа
Справедливість,"Рівненська область, Рівне, вулиця Поштова, 2",49,2017-11-30,платіжне доручення  No 86,Публікування матеріалів у друкованих ЗМІ,Реклама в друкованих ЗМІ,48467,Рівненська обласна організація,40017968,Рівненська область,"Оплата згiдно рах N 591 вiд 22.11.2017 за розм iнформ матер в газ ""7 днiв"" N 42 вiд 19.10.2017 Без ПДВ ",26006054726027,current,1500.00,"КП ""РГ ""Сім днів"" РМР",21081712,юридична особа
Справедливість,"Київ, вулиця Михайла Грушевського, 1Д",70,2017-11-30,BUO0KUBU9Y,Банківські послуги,Інші витрати,48466,Рівненська обласна організація,40017968,Рівненська область,"Комiсiя за обслуговування рахунку серпень 2017р. згiдно договору банкiвського рахунку вiд 22.11.2016, без ПДВ",26006054726027,current,3.00,"ПАТ КБ ""Приватбанк""",14360570,юридична особа
Справедливість,"Рівненська область, Рівне, вулиця Соборна, 12а",79,2017-11-30,платіжне доручення  No 83,"Оренда будинків і приміщень та експлуатаційні витрати (прибирання, страхування орендованих будинків, охорона, сигналізація, ремонт, вивіз сміття, тощо)",Оренда нерухомості,48465,Рівненська обласна організація,40017968,Рівненська область,Орендна плата по договору оренди N 69 с/о за сiчень 2016 без ПДВ,26009054717583,current,1808.26,Управління комунальною власністю виконавчого комітету Рівненської міської ради,26259563,юридична особа
Справедливість,"Київ, вулиця Михайла Грушевського, 1Д",70,2017-11-30,BUO0KUAR7Y,Банківські послуги,Інші витрати,48464,Рівненська обласна організація,40017968,Рівненська область,"Комiсiя за обслуговування рахунку серпень 2017р. згiдно договору банкiвського рахунку вiд 22.11.2016, без ПДВ",26006054726027,current,3.00,"ПАТ КБ ""Приватбанк""",14360570,юридична особа
Справедливість,"Рівненська область, Рівне, вулиця Соборна, 12а",79,2017-11-30,платіжне доручення  No 82,"Оренда будинків і приміщень та експлуатаційні витрати (прибирання, страхування орендованих будинків, охорона, сигналізація, ремонт, вивіз сміття, тощо)",Оренда нерухомості,48463,Рівненська обласна організація,40017968,Рівненська область,Орендна плата по договору оренди N 69 с/о за сiчень 2016 без ПДВ,26009054717583,current,3992.02,Управління комунальною власністю виконавчого комітету Рівненської міської ради,26259563,юридична особа
Справедливість,"Київ, вулиця Миколи Лєскова, 9",70,2017-11-30,bn,Банківські послуги,Інші витрати,48414,Центральний офіс,39688832,Україна,Комісія за ведення поточних рахунків ,26000532822,current,250.00,"АТ ""Райффайзен банк Аваль""",14305909,юридична особа
Справедливість,"Київ, вулиця Миколи Лєскова, 9",70,2017-11-30,bn,Банківські послуги,Інші витрати,48413,Центральний офіс,39688832,Україна,Комісія за вихідні перекази,26000532822,current,42.00,"АТ ""Райффайзен банк Аваль""",14305909,юридична особа
Справедливість,"Чернівецька область, Новоселицький район, Новоселиця, вулиця Чкалова, 3",59,2017-11-28,74,Грошова застава,Грошова застава,48412,Центральний офіс,39688832,Україна,Грошова застава за виборчий список кандидатів,26000532822,current,1999.00,Новоселецька міська виборча комісія,34208336,юридична особа
Справедливість,"Чернівецька область, Новоселицький район, Новоселиця, вулиця Чкалова, 3",59,2017-11-28,73,Грошова застава,Грошова застава,48411,Центральний офіс,39688832,Україна,Грошова застава Новоселицької районної парторганізації,26000532822,current,1999.00,Новоселецька міська виборча комісія,34208336,юридична особа
Справедливість,"Київ, вулиця Лугова, 1",58,2017-11-27,72,"Виготовлення друкованих матеріалів (плакатів, листівок, буклетів та інших агітаційних матеріалів)",Друкована агітація,48410,Центральний офіс,39688832,Україна,За поліграфічні послуги,26000532822,current,5306.00,"ТОВ ""Полі-прінт""",32108259,юридична особа
Справедливість,"Київська обл., Білоцерківський район, Узин, вулиця Незалежності, 16",59,2017-11-27,70,Грошова застава,Грошова застава,48409,Центральний офіс,39688832,Україна,Грошова застава за виборчий список кандидатів,26000532822,current,1859.00,Узинська міська виборча комісія,34162941,юридична особа
Справедливість,"Сумська область, Суми, проспект Михайла Лушпи, 11, 148",56,2017-11-27,71,Виготовлення (оренда) агітаційних наметів,Виготовлення (оренда) агітаційних наметів,48381,Центральний офіс,39688832,Україна,Виготовлення агітаційної палатки,26000532822,current,3160.00,Дубинський Сергій Сергійович,,фізична особа
Справедливість,"Київська обл., Тетіївський район, Тетіїв",59,2017-11-24,67,Грошова застава,Грошова застава,48408,Центральний офіс,39688832,Україна,Грошова застава за виборчий список кандидатів,26000532822,current,2328.00,Тетіївська міська виборча комісія,33877640,юридична особа
Справедливість,"Сумська область, Охтирка, провулок Сумський",49,2017-11-24,66,Публікування матеріалів у друкованих ЗМІ,Реклама в друкованих ЗМІ,48407,Центральний офіс,39688832,Україна,Публікація в газеті,26000532822,current,708.50,"КП ""Прапор перемоги""",02475121,юридична особа
Справедливість,"Київ, вулиця Михайла Грушевського, 1Д",70,2017-11-21,BLO0K2A5AY,Банківські послуги,Інші витрати,48462,Рівненська обласна організація,40017968,Рівненська область,"Комiсiя за обслуговування рахунку серпень 2017р. згiдно договору банкiвського рахунку вiд 22.11.2016, без ПДВ",26006054726027,current,3.00,"ПАТ КБ ""Приватбанк""",14360570,юридична особа
Справедливість,"Рівненська область, Рівне, вулиця Соборна, 12а",79,2017-11-21,платіжне доручення  No 80,"Оренда будинків і приміщень та експлуатаційні витрати (прибирання, страхування орендованих будинків, охорона, сигналізація, ремонт, вивіз сміття, тощо)",Оренда нерухомості,48461,Рівненська обласна організація,40017968,Рівненська область,Орендна плата по договору оренди N 69 с/о за сiчень 2016 без ПДВ,26009054717583,current,3992.02,Управління комунальною власністю виконавчого комітету Рівненської міської ради,26259563,юридична особа
Справедливість,"Київ, вулиця Михайла Грушевського, 1Д",70,2017-11-21,BLO0K22E0Y,Банківські послуги,Інші витрати,48460,Рівненська обласна організація,40017968,Рівненська область,"Комiсiя за обслуговування рахунку серпень 2017р. згiдно договору банкiвського рахунку вiд 22.11.2016, без ПДВ",26006054726027,current,3.00,"ПАТ КБ ""Приватбанк""",14360570,юридична особа
Справедливість,"Рівненська область, Рівне, вулиця Яворницького, 34",61,2017-11-21,платіжне доручення  №78,Військовий збір,Податкові платежі,48459,Рівненська обласна організація,40017968,Рівненська область,*;101;40017968;Вiйськовий збiр договiр купiвлi продажу N 1 вiд 21.11.2017 року;;;,26009054717583,current,22.36,ГУ ДКСУ у Рівненській області,38012714,юридична особа
Справедливість,"Київ, вулиця Михайла Грушевського, 1Д",70,2017-11-21,BLO0K22DWY,Банківські послуги,Інші витрати,48458,Рівненська обласна організація,40017968,Рівненська область,"Комiсiя за обслуговування рахунку серпень 2017р. згiдно договору банкiвського рахунку вiд 22.11.2016, без ПДВ",26006054726027,current,3.00,"ПАТ КБ ""Приватбанк""",14360570,юридична особа
Справедливість,"Рівненська область, Рівне, вулиця Яворницького, 34",63,2017-11-21,платіжне доручення  №77,Податок на доходи,Податкові платежі,48457,Рівненська обласна організація,40017968,Рівненська область,"*;101;40017968;Податок на доходи фiзичних осiб, що сплачується податковими агентами з договору купiвлi продажу N 1 вiд 21.11.2017 року;;; ",26009054717583,current,268.32,ГУ ДКСУ у Рівненській області,38012714,юридична особа
Справедливість,"Київ, вулиця Михайла Грушевського, 1Д",70,2017-11-21,BLO0K1S5DY,Банківські послуги,Інші витрати,48456,Рівненська обласна організація,40017968,Рівненська область,"Комiсiя за обслуговування рахунку серпень 2017р. згiдно договору банкiвського рахунку вiд 22.11.2016, без ПДВ",26006054726027,current,3.00,"ПАТ КБ ""Приватбанк""",14360570,юридична особа
Справедливість,,53,2017-11-21,платіжне доручення  № 76,Витрати на розміщення зовнішньої реклами,Зовнішня реклама,48455,Рівненська обласна організація,40017968,Рівненська область,Оплата за оренду лайтбоксу та розм рекламн. матер за грудень 2017 р.згiдно рахунку - фактури N 141 за листопад 2017 р. Без ПДВ ,26009054717583,current,550.00,"Комунальне підприємство ""Агенство нерухомості ""Персектива""",33467090,юридична особа
Справедливість,"Київ, вулиця Михайла Грушевського, 1Д",70,2017-11-21,BLO0K1S5EY,Банківські послуги,Інші витрати,48454,Рівненська обласна організація,40017968,Рівненська область,"Комiсiя за обслуговування рахунку серпень 2017р. згiдно договору банкiвського рахунку вiд 22.11.2016, без ПДВ",26006054726027,current,3.00,"ПАТ КБ ""Приватбанк""",14360570,юридична особа
Справедливість,,49,2017-11-21,платіжне доручення № 81,Публікування матеріалів у друкованих ЗМІ,Реклама в друкованих ЗМІ,48451,Рівненська обласна організація,40017968,Рівненська область,"За розмiщення рекламного оголошення в газетi ""Полiсся Бiзнес Iнформ"" вiд 17.11.2017 р.згiдно рахунку N 135 вiд 16.11.2017 р. Без ПДВ ",26006054726027,current,255.00,Герштун Раїса Миколаївна,,фізична особа
Справедливість,,43,2017-11-21,платіжне доручення №79,Інші витрати,Інші витрати,48450,Рівненська обласна організація,40017968,Рівненська область,#5168742203148543 IПН 3230008518 Оплата згiдно договору купiвлi продажу N 1 вiд 21.11.2017 року ,26006054726027,current,1200.00,Самчук Віктор Михайлович,,фізична особа
Справедливість,,52,2017-11-21,платіжне доручення №73,Інша реклама (без класифікації),Реклама (без класифікації),48449,Рівненська обласна організація,40017968,Рівненська область,Оплата за рекламнi послуги згiдно рахунку N 13/224я вiд 18.10.2017 р. Без ПДВ,26009054717583,current,2000.00,Ясковець Світлана Георгіївна,,фізична особа
Справедливість,"Рівненська область, Рівне, вулиця Андрія Мельника, 10",58,2017-11-21,платіжне доручення №75,"Виготовлення друкованих матеріалів (плакатів, листівок, буклетів та інших агітаційних матеріалів)",Друкована агітація,48448,Рівненська обласна організація,40017968,Рівненська область,Оплата за банер згiдно рахунку -фактури N СФ-0000257 вiд 11.10.2017 р. Без ПДВ,26006054726027,current,666.00,Горбатюк Тарас Григорович,3208810855,фізична особа
Справедливість,"Рівненська область, Рівне, вулиця Андрія Мельника, 10",58,2017-11-21,платіжне доручення №74,"Виготовлення друкованих матеріалів (плакатів, листівок, буклетів та інших агітаційних матеріалів)",Друкована агітація,48447,Рівненська обласна організація,40017968,Рівненська область,Оплата за банер згiдно рахунку- фактури N СФ-0000250 вiд 04.10.2017 р. Без ПДВ,26006054726027,current,1444.00,Горбатюк Тарас Григорович,3208810855,фізична особа
Справедливість,,58,2017-11-21,63,"Виготовлення друкованих матеріалів (плакатів, листівок, буклетів та інших агітаційних матеріалів)",Друкована агітація,48380,Центральний офіс,39688832,Україна,За поліграфічні послуги,26000532822,current,84.00,Кальченко Олександр Вікторович,,фізична особа
Справедливість,"Чернівецька область, Кіцманський район, Кіцмань, вулиця Незалежності, 57",64,2017-11-17,64,Повернення платежів партії,Повернення,48406,Центральний офіс,39688832,Україна,Повернення помилково перрерахованих коштів,26000532822,current,992.00,Кіцманська міська виборча комісія Кіцманського району Чернівецької області,34141551,юридична особа
Справедливість,"Чернівецька область, Кіцманський район, Кіцмань, вулиця Незалежності, 57",64,2017-11-17,64,Повернення платежів партії,Повернення,48372,Центральний офіс,39688832,Україна,Надлишково перераховані кошти,26000532822,current,992.00,Кіцманська міська виборча комісія Кіцманського району Чернівецької області,34141551,юридична особа
Справедливість,"Сумська область, Конотоп, вулиця Соборна, 23",49,2017-11-16,62,Публікування матеріалів у друкованих ЗМІ,Реклама в друкованих ЗМІ,48405,Центральний офіс,39688832,Україна,Публікація в газеті,26000532822,current,1666.35,"РГ ""Сільські горизонти""",21107216,юридична особа
Справедливість,,58,2017-11-16,63,"Виготовлення друкованих матеріалів (плакатів, листівок, буклетів та інших агітаційних матеріалів)",Друкована агітація,48379,Центральний офіс,39688832,Україна,За поліграфічні послуги,26000532822,current,180.00,Кальченко Олександр Вікторович,,фізична особа
Справедливість,"Київ, вулиця Старовокзальна, 7В, 18",79,2017-11-10,61,"Оренда будинків і приміщень та експлуатаційні витрати (прибирання, страхування орендованих будинків, охорона, сигналізація, ремонт, вивіз сміття, тощо)",Оренда нерухомості,48404,Центральний офіс,39688832,Україна,Оренда приміщення за  жовтень 2017 згідно умов договору від 27.12.2016 №4,26000532822,current,33975.86,"ТОВ ""ВВ Інвест""",32455634,юридична особа
Справедливість,"Київ, вулиця Старовокзальна, 7В, 18",79,2017-11-10,59,"Оренда будинків і приміщень та експлуатаційні витрати (прибирання, страхування орендованих будинків, охорона, сигналізація, ремонт, вивіз сміття, тощо)",Оренда нерухомості,48403,Центральний офіс,39688832,Україна,Оренда приміщення за  жовтень 2017 згідно умов договору від 21.09.2017 №12,26000532822,current,24787.58,"ТОВ ""ВВ Інвест""",32455634,юридична особа
Справедливість,"Київ, вулиця Старовокзальна, 7В, 18",79,2017-11-10,60,"Оренда будинків і приміщень та експлуатаційні витрати (прибирання, страхування орендованих будинків, охорона, сигналізація, ремонт, вивіз сміття, тощо)",Оренда нерухомості,48402,Центральний офіс,39688832,Україна,Оренда приміщення за жовтень 2017 згідно умов договору від 21.09.2017 №13,26000532822,current,20032.51,"ТОВ ""ВВ Інвест""",32455634,юридична особа
Справедливість,"Сумська область, Білопільський район, Білопілля, вул. Соборна",49,2017-11-08,58,Публікування матеріалів у друкованих ЗМІ,Реклама в друкованих ЗМІ,48401,Центральний офіс,39688832,Україна,За публікацію в газеті,26000532822,current,720.00,"ТОВ ""Медіа-центр ""Білопільщина""",02475032,юридична особа
Справедливість,"Сумська область, Ямпільський район, Ямпіль, Бульвар Ювілейний, 7",49,2017-11-08,55,Публікування матеріалів у друкованих ЗМІ,Реклама в друкованих ЗМІ,48400,Центральний офіс,39688832,Україна,За публікацію в газеті,26000532822,current,806.40,"КП ""Медіасвіт Ямпіль""",38094630,юридична особа
Справедливість,,58,2017-11-08,56,"Виготовлення друкованих матеріалів (плакатів, листівок, буклетів та інших агітаційних матеріалів)",Друкована агітація,48378,Центральний офіс,39688832,Україна,За поліграфічні послуги,26000532822,current,2900.00,Кальченко Олександр Вікторович,,фізична особа
Справедливість,,53,2017-11-08,55,Витрати на розміщення зовнішньої реклами,Зовнішня реклама,48377,Центральний офіс,39688832,Україна,Розміщення зовнішньої політичної реклами,26000532822,current,6050.00,Атамась Ольга Андріївна,,фізична особа
Справедливість,"Черкаська область, Черкаси, вулиця Хрещатик, 193",79,2017-11-02,54,"Оренда будинків і приміщень та експлуатаційні витрати (прибирання, страхування орендованих будинків, охорона, сигналізація, ремонт, вивіз сміття, тощо)",Оренда нерухомості,48399,Центральний офіс,39688832,Україна,Оренда приміщення за жовтень 2017 згідно умов договору від 01.09.20017 №2,26000532822,current,5537.67,"ТОВ ""Юридична компанія ""Право, бізнес і фінанси""",40722237,юридична особа
Справедливість,"Київ, вулиця Михайла Грушевського, 1Д",70,2017-11-01,AS7av7dh1p,Банківські послуги,Інші витрати,48453,Рівненська обласна організація,40017968,Рівненська область,"Комiсiя за виконання платежiв в нацiональнiй валютi, згiдно з вiдкритою офертою банку N б/н вiд 22.11.2016 та тарифiв банку, без ПДВ.",26006054726027,current,100.00,"ПАТ КБ ""Приватбанк""",14360570,юридична особа
Справедливість,"Київ, вулиця Миколи Лєскова, 9",70,2017-10-21,bn,Банківські послуги,Інші витрати,48397,Центральний офіс,39688832,Україна,Комісія за вихідні перекази,26000532822,current,32.00,"АТ ""Райффайзен банк Аваль""",14305909,юридична особа
Справедливість,"Рівненська область, Рівне, вулиця Андрія Мельника, 10",53,2017-10-13,платіжне доручення №72,Витрати на розміщення зовнішньої реклами,Зовнішня реклама,48446,Рівненська обласна організація,40017968,Рівненська область,Оплата згiдно рахунку - фактури N СФ-0000230 вiд 07 вересня 2017 р Без ПДВ,26006054726027,current,965.00,Горбатюк Тарас Григорович,3208810855,фізична особа
Справедливість,"Рівненська область, Рівне, вулиця Андрія Мельника, 10",53,2017-10-13,платіжне доручення № 73,Витрати на розміщення зовнішньої реклами,Зовнішня реклама,48445,Рівненська обласна організація,40017968,Рівненська область,Оплата згiдно рахунку фактури друк сiтiлайт N 0000241 вiд 18 вересня 2017 р.,26006054726027,current,115.00,Горбатюк Тарас Григорович,3208810855,фізична особа
Справедливість,"Київ, вулиця Старовокзальна, 7В, 18",79,2017-10-13,53,"Оренда будинків і приміщень та експлуатаційні витрати (прибирання, страхування орендованих будинків, охорона, сигналізація, ремонт, вивіз сміття, тощо)",Оренда нерухомості,48396,Центральний офіс,39688832,Україна,Оренда приміщення за останній місяць 2017 згідно умов договору від 27.12.2016 №4,26000532822,current,28970.00,"ТОВ ""ВВ Інвест""",32455634,юридична особа
Справедливість,"Чернівецька область, Чернівці, вулиця Руська, 23",53,2017-10-13,50,Витрати на розміщення зовнішньої реклами,Зовнішня реклама,48376,Центральний офіс,39688832,Україна,Розміщення зовнішньої політичної реклами,26000532822,current,6200.00,Левченко Дмитро Олександрович,3420504874,фізична особа
Справедливість,"Чернівецька область, Чернівці",53,2017-10-13,51,Витрати на розміщення зовнішньої реклами,Зовнішня реклама,48375,Центральний офіс,39688832,Україна,Розміщення зовнішньої політичної реклами,26000532822,current,1890.00,Писаренко Руслан Сергійович,,фізична особа
Справедливість,"Чернівецька область, Чернівці",53,2017-10-13,52,Витрати на розміщення зовнішньої реклами,Зовнішня реклама,48374,Центральний офіс,39688832,Україна,Розміщення зовнішньої політичної реклами,26000532822,current,1600.00,Бучковський Роман Степанович,,фізична особа
Справедливість,"Київ, вулиця Старовокзальна, 7В, 18",79,2017-10-12,49,"Оренда будинків і приміщень та експлуатаційні витрати (прибирання, страхування орендованих будинків, охорона, сигналізація, ремонт, вивіз сміття, тощо)",Оренда нерухомості,48395,Центральний офіс,39688832,Україна,Оренда приміщення за останній місяць згідно умов договору від 21.09.2017 №12,26000532822,current,22700.00,"ТОВ ""ВВ Інвест""",32455634,юридична особа
Справедливість,"Київ, вулиця Старовокзальна, 7В, 18",79,2017-10-12,48,"Оренда будинків і приміщень та експлуатаційні витрати (прибирання, страхування орендованих будинків, охорона, сигналізація, ремонт, вивіз сміття, тощо)",Оренда нерухомості,48394,Центральний офіс,39688832,Україна,Оренда приміщення за останній місяць згідно умов договору від 21.09.2017 №13,26000532822,current,18390.00,"ТОВ ""ВВ Інвест""",32455634,юридична особа
Справедливість,"Київ, вулиця Старовокзальна, 7В, 18",79,2017-10-12,47,"Оренда будинків і приміщень та експлуатаційні витрати (прибирання, страхування орендованих будинків, охорона, сигналізація, ремонт, вивіз сміття, тощо)",Оренда нерухомості,48393,Центральний офіс,39688832,Україна,Оренда приміщення за вересень 2017 згідно умов договору від 27.12.2016 №4,26000532822,current,2359.20,"ТОВ ""ВВ Інвест""",32455634,юридична особа
Справедливість,"Житомирська область, Житомир, вулиця Театральна, 7",51,2017-10-06,46,Оплата ефірного часу на ТБ,Телереклама,48392,Центральний офіс,39688832,Україна,За надання послуг на телебаченні ,26000532822,current,6120.00,"Філія ПАТ ""НСТУ"" ""Житомирська регіональна дирекція""",40020187,юридична особа
Справедливість,"Чернівецька область, Кіцманський район, Кіцмань, вулиця Незалежності, 57",59,2017-10-04,45,Грошова застава,Грошова застава,48391,Центральний офіс,39688832,Україна,Грошова застава Кіцманської районної парторганізації ,26000532822,current,992.00,Кіцманська міська виборча комісія Кіцманського району Чернівецької області,34141551,юридична особа
Справедливість,"Чернівецька область, Кіцманський район, Кіцмань, вулиця Незалежності, 57",59,2017-10-04,44,Грошова застава,Грошова застава,48390,Центральний офіс,39688832,Україна,Грошова застава Кіцманської районної парторганізації,26000532822,current,992.00,Кіцманська міська виборча комісія Кіцманського району Чернівецької області,34141551,юридична особа
Справедливість,"Сумська область, Тростянецький район, Тростянець, вулиця Миру, 6",59,2017-10-03,43,Грошова застава,Грошова застава,48389,Центральний офіс,39688832,Україна,Грошова застава за виборчий список кандидатів,26000532822,current,2261.00,Тростянецька міська виборча комісія,41599019,юридична особа
Справедливість,"Сумська область, Буринський район, Буринь, вул. Першотравнева, 1",59,2017-10-03,42,Грошова застава,Грошова застава,48388,Центральний офіс,39688832,Україна,Грошова застава за виборчий список кандидатів,26000532822,current,1759.00,Буринська МВК,34134500,юридична особа
Справедливість,"Дніпропетровська область, Дніпро́, вулиця Телевізійна, 3",51,2017-10-02,41,Оплата ефірного часу на ТБ,Телереклама,48387,Центральний офіс,39688832,Україна,За надання послуг на телебаченні ,26000532822,current,2640.00,"Філія ПАТ ""НСТУ"" ""Дніпропетровська регіональна дирекція""",40020546,юридична особа
Справедливість,,53,2017-10-02,40,Витрати на розміщення зовнішньої реклами,Зовнішня реклама,48373,Центральний офіс,39688832,Україна,Розміщення зовнішньої політичної реклами,26000532822,current,23380.00,Клещар Марина Анатоліївна,,фізична особа
Справедливість,"Дніпропетровська область, Верхньодніпровський район, Верхньодніпровськ",59,2017-09-29,39,Грошова застава,Грошова застава,48488,Центральний офіс,39688832,Україна,"Грош.заст.за виборч.спис.кандидатів в депут.Верхньодніпровськ міськ.ради від Верхньодніпров.районної місц.парторганізації ПП""ГПР В.Наливайченка ""Справедливість""",919689,current,1749.00,Верхньодніпровська міська виборча комісія Верхньодніпровського району Дніпропетровської області,34148838,юридична особа
Справедливість,"Київ, вулиця Миколи Лєскова, 9",70,2017-09-29,Bn_5,Банківські послуги,Інші витрати,48480,Центральний офіс,39688832,Україна,"Комісія за ведення поточних рахунків клієнта ППГПР ""В. НАЛИВАЙЧЕНКА СПРАВЕДЛІСТЬ"" в дирек. 26-Київ за період з 2017-08-31 по 2017-09-28, без ПДВ",26000532822,current,250.00,"АТ ""Райффайзен банк Аваль""",14305909,юридична особа
Справедливість,"Київ, вулиця Миколи Лєскова, 9",70,2017-09-29,Bn_4,Банківські послуги,Інші витрати,48479,Центральний офіс,39688832,Україна,"Комісія за вихідні перекази в нац. валюті (Клієнт-банк) з 2017-08-31 по 2017-09-28 по рах №26000532822 (UAH) 18*2=36грн., без ПДВ",26000532822,current,36.00,"АТ ""Райффайзен банк Аваль""",14305909,юридична особа
Справедливість,"Дніпропетровська область, Петропавлівський район, Миколаївка",79,2017-09-29,38,"Оренда будинків і приміщень та експлуатаційні витрати (прибирання, страхування орендованих будинків, охорона, сигналізація, ремонт, вивіз сміття, тощо)",Оренда нерухомості,48472,Центральний офіс,39688832,Україна,За оренду приміщення згідно з договором б/н від 2017-09-25. Без ПДВ.,919693,current,100.00,Миколаївське сільське споживче тов-во,01745788,юридична особа
Справедливість,"Дніпропетровська область, Верхньодніпровський район, Верхньодніпровськ",79,2017-09-28,36,"Оренда будинків і приміщень та експлуатаційні витрати (прибирання, страхування орендованих будинків, охорона, сигналізація, ремонт, вивіз сміття, тощо)",Оренда нерухомості,48506,Центральний офіс,39688832,Україна,За оренду приміщення згідно з договором від 2017-09-27 №9.,26000532822,current,150.00,Атоян Наталія Олексіївна,,фізична особа
Справедливість,"Дніпропетровська область, Верхньодніпровський район, Верхньодніпровськ, вулиця Яблунева, 35",49,2017-09-28,37,Публікування матеріалів у друкованих ЗМІ,Реклама в друкованих ЗМІ,48474,Центральний офіс,39688832,Україна,За публікацію матеріалів в газеті згідно з договором від 2017-09-18 та рахунку від 2017-09-26 № 210. Без ПДВ.,919693,current,2089.15,"РГ ""Придніпровський Комунар""",02471991,юридична особа
Справедливість,"Чернівецька область, Чернівці",58,2017-09-26,35,"Виготовлення друкованих матеріалів (плакатів, листівок, буклетів та інших агітаційних матеріалів)",Друкована агітація,48505,Центральний офіс,39688832,Україна,Друк газет згідно з договором від 2017-09-18 та рахунку від 2017-09-21 № 356. Без ПДВ.,919691,current,30500.00,Зволейко Артур Леонідович,3216318018,фізична особа
Справедливість,"Дніпропетровська область, Дніпро́",58,2017-09-26,32,"Виготовлення друкованих матеріалів (плакатів, листівок, буклетів та інших агітаційних матеріалів)",Друкована агітація,48504,Центральний офіс,39688832,Україна,За друк на папері Blueback (3x6м.) згідно з договором від 2017-09-20 № 195/09 та рахунку від 2017-09-20 № 195/09. Без ПДВ.,919692,current,348.50,Тендітник Ольга Петрівна,,фізична особа
Справедливість,"Черкаська область, Кам'янський район, Кам'янка",59,2017-09-26,34,Грошова застава,Грошова застава,48489,Центральний офіс,39688832,Україна,"Грош.застава за виборч.спис.кандидатів в депут.Кам'янської міськ.ради від Кам'янської районної місц. парторганізації ПП ""ГПР В. Наливайченка ""Справедливість"".",919688,current,1581.00,"Кам""янська МВК",34237964,юридична особа
Справедливість,"Черкаська область, Жашківський район, Жашків, вулиця Захисників України, 19",59,2017-09-26,33,Грошова застава,Грошова застава,48487,Центральний офіс,39688832,Україна,"Грош.застава за виборч.спис.кандидатів в депут.Жашківської міськ.ради від Жашківської районної місц. парторганізації ПП ""ГПР В. Наливайченка ""Справедливість"".",919688,current,1877.00,Жашківська МВК,34139247,юридична особа
Справедливість,"Дніпропетровська область, Дніпро́",51,2017-09-21,30,Оплата ефірного часу на ТБ,Телереклама,48503,Центральний офіс,39688832,Україна,За розміщення реклами згідно з договором від 2017-08-28 №17/08/05 та рахунку від 2017-09-06 № БП73. Без ПДВ.,26000532822,current,19100.00,Брайчук Ірина Олександрівна,,фізична особа
Справедливість,"Дніпропетровська область, Дніпро́",58,2017-09-21,29,"Виготовлення друкованих матеріалів (плакатів, листівок, буклетів та інших агітаційних матеріалів)",Друкована агітація,48502,Центральний офіс,39688832,Україна,За друк зображення на папері згідно з договором від 2017-08-28 №17/08/05 та рахунку від 2017-09-06 № БП77. Без ПДВ.,26000532822,current,4280.00,Брайчук Ірина Олександрівна,,фізична особа
Справедливість,"Дніпропетровська область, Дніпро́, проспект Богдана Хмельницького, 5",51,2017-09-21,31,Оплата ефірного часу на ТБ,Телереклама,48483,Центральний офіс,39688832,Україна,За розміщення рекламних матеріалів згідно з договором від 2017-09-01№ 01/09/17 та рахунком від 2017-09-01 №СФ-0000102. у т.ч. ПДВ 20% - 806.40 грн.,919693,current,4838.40,"ТОВ ""Ідея""",31659783,юридична особа
Справедливість,"Чернівецька область, Чернівці, вулиця Руська, 23",52,2017-09-20,26,Інша реклама (без класифікації),Реклама (без класифікації),48501,Центральний офіс,39688832,Україна,За рекламні послуги в вересні 2017р. згідно з договором від 2017-08-22 № 2017 11/17 та рахунку від 2017-09-15 № 60.Без ПДВ.,919691,current,6200.00,Левченко Дмитро Олександрович,3420504874,фізична особа
Справедливість,"Київ, вулиця Михайла Бойчука, 18А",57,2017-09-20,28,Виготовлення брендованої продукції,"Виготовлення брендованої продукції (футболки, кепки, парасольки)",48491,Центральний офіс,39688832,Україна,За прапори згідно з договором від 2017-09-15 № 15/09/17-1 та рахунку від 2017-09-18 №18. у т.ч. ПДВ 20% - 132.00 грн.,919686,current,792.00,"ТОВ ""Нові дисконтні системи України""",35196903,юридична особа
Справедливість,"Київ, вулиця Михайла Бойчука, 18А",57,2017-09-20,27,Виготовлення брендованої продукції,"Виготовлення брендованої продукції (футболки, кепки, парасольки)",48490,Центральний офіс,39688832,Україна,За прапори згідно з договором від 2017-09-15 № 15/09/17-1 та рахунку від 2017-09-18 №17. у т.ч. ПДВ 20% - 880.00 грн.,919686,current,5280.00,"ТОВ ""Нові дисконтні системи України""",35196903,юридична особа
Справедливість,"Київ, вулиця Межигірська, 5, 18",72,2017-09-19,24,"Придбання, ремонт офісної техніки та програмного забезпечення (Бухгалтерські програми, Ліга.закон, домени)",Придбання офісної техніки та програмного забезпечення,48492,Центральний офіс,39688832,Україна,Послуги у сфері Інформатизації:однораз. підключ.на ІТ супровід облікових систем ПРОФ та супровід конфіг. Бух.облік для НО України на 12 міс.(10.2017-09.2018),919685,current,8757.00,"ТОВ ""Ц.І.Т.""",37037811,юридична особа
Справедливість,"Дніпропетровська область, Верхньодніпровський район, Верхньодніпровськ, вулиця Яблунева, 35",49,2017-09-19,25,Публікування матеріалів у друкованих ЗМІ,Реклама в друкованих ЗМІ,48473,Центральний офіс,39688832,Україна,За публікацію матеріалів в газеті згідно з договором від 2017-09-18 та рахунку від 2017-09-18 № 124. Без ПДВ.,919693,current,1400.00,"РГ ""Придніпровський Комунар""",02471991,юридична особа
Справедливість,"Київська обл., Біла Церква",53,2017-09-15,22,Витрати на розміщення зовнішньої реклами,Зовнішня реклама,48500,Центральний офіс,39688832,Україна,За розміщення реклами на бігборді згідно з рах. № НВ-052 від 2017-08-07 та дог. від 2017-08-01 № НВ-013. Без ПДВ.,919690,current,2000.00,Яременко Надія Віталіївна,,фізична особа
Справедливість,"Київ, вулиця Старовокзальна, 7В, 18",79,2017-09-15,23,"Оренда будинків і приміщень та експлуатаційні витрати (прибирання, страхування орендованих будинків, охорона, сигналізація, ремонт, вивіз сміття, тощо)",Оренда нерухомості,48486,Центральний офіс,39688832,Україна,"Оренда приміщення за серпень 2017 згідно умов договору від 2016-12-27 №4, рахунок від 28.02.17 №74. у т.ч. ПДВ 20% - 393.20 грн.",919687,current,2359.20,"ТОВ ""ВВ Інвест""",32455634,юридична особа
Справедливість,"Чернівецька область, Чернівці",53,2017-09-12,21,Витрати на розміщення зовнішньої реклами,Зовнішня реклама,48499,Центральний офіс,39688832,Україна,"Розміщення реклами на рекламних носіях ""Бігбордах"" в вересні 2017р. Без ПДВ.",919693,current,1600.00,Бучковський Роман Степанович,,фізична особа
Справедливість,"Чернівецька область, Чернівці",53,2017-09-12,20,Витрати на розміщення зовнішньої реклами,Зовнішня реклама,48498,Центральний офіс,39688832,Україна,За розміщення реклами на бігбордах за вересень 2017р. Згідно з рах. від 2017-09-01 № РС-0000132 та договору від 2017-08-28 № 09/17. Без ПДВ.,919693,current,1890.00,Писаренко Руслан Сергійович,,фізична особа
Справедливість,"Київ, вулиця Михайла Грушевського, 1Д",70,2017-09-01,AS78v6knmp,Банківські послуги,Інші витрати,48482,Рівненська обласна організація,40017968,Рівненська область,"Комiсiя за обслуговування рахунку серпень 2017р. згiдно договору банкiвського рахунку вiд 2016-11-22, без ПДВ",26006054726027,current,100.00,"ПАТ КБ ""Приватбанк""",14360570,юридична особа
Справедливість,"Київ, вулиця Миколи Лєскова, 9",70,2017-08-31,Bn_3,Банківські послуги,Інші витрати,48478,Центральний офіс,39688832,Україна,"Комісія за ведення поточних рахунків клієнта ППГПР ""В. НАЛИВАЙЧЕНКА СПРАВЕДЛІСТЬ"" в дирек. 26-Київ за період з 2017-07-31 по 2017-08-30, без ПДВ",26000532822,current,250.00,"АТ ""Райффайзен банк Аваль""",14305909,юридична особа
Справедливість,"Київ, вулиця Миколи Лєскова, 9",70,2017-08-31,Bn_2,Банківські послуги,Інші витрати,48477,Центральний офіс,39688832,Україна,"Комісія за вихідні перекази в нац. валюті (Клієнт-банк) з 2017-07-31 по 2017-08-30 по рах №26000532822 (UAH) 3*2=6грн., без ПДВ",26000532822,current,6.00,"АТ ""Райффайзен банк Аваль""",14305909,юридична особа
Справедливість,"Рівненська область, Рівне, вулиця Андрія Мельника, 10",58,2017-08-28,платіжне доручення №71,"Виготовлення друкованих матеріалів (плакатів, листівок, буклетів та інших агітаційних матеріалів)",Друкована агітація,48509,Рівненська обласна організація,40017968,Рівненська область,Оплата за банер згiдно рахунку -фактури N СФ - 0000221 вiд 28 серпня 2017 р. Без ПДВ,26006054726027,current,312.00,Горбатюк Тарас Григорович,3208810855,фізична особа
Справедливість,,66,2017-08-21,19,Повернення внесків приватних внесків (донорам),Повернення приватних внесків (донорам),48497,Центральний офіс,39688832,Україна,Повернення коштів Місенко Валерій Михайлович для уточнення даних платника. Платіжний документ від 2017-07-03 № N1С7Y49536.,26000532822,current,50.00,Місенко Валерій Михайлович,,фізична особа
Справедливість,,66,2017-08-21,18,Повернення внесків приватних внесків (донорам),Повернення приватних внесків (донорам),48496,Центральний офіс,39688832,Україна,Повернення коштів Місенко Валерій Михайлович для уточнення даних платника. Платіжний документ від 2017-07-03 № N1С7Y49459.,26000532822,current,10.00,Місенко Валерій Михайлович,,фізична особа
Справедливість,,67,2017-08-21,N1C7Y49536,"Повернення коштів, що надійшли з державного бюджету","Повернення коштів, що надійшли з державного бюджету",48495,Центральний офіс,39688832,Україна,повернення коштів до державного бюджету,26000532822,current,50.00,Місенко Валерій Михайлович,,фізична особа
Справедливість,,67,2017-08-21,N1C7Y49459,"Повернення коштів, що надійшли з державного бюджету","Повернення коштів, що надійшли з державного бюджету",48494,Центральний офіс,39688832,Україна,повернення коштів до державного бюджету,26000532822,current,10.00,Місенко Валерій Михайлович,,фізична особа
Справедливість,"Рівненська область, Рівне, вулиця Андрія Мельника, 10",58,2017-08-14,платіжне доручення №70,"Виготовлення друкованих матеріалів (плакатів, листівок, буклетів та інших агітаційних матеріалів)",Друкована агітація,48508,Рівненська обласна організація,40017968,Рівненська область,Оплата за банер згiдно рахунку-фактури N СФ-0000202 вiд 2017-08-11 Без ПДВ,26006054726027,current,1390.00,Горбатюк Тарас Григорович,3208810855,фізична особа
Справедливість,"Київ, вулиця Старовокзальна, 7В, 18",79,2017-08-14,17,"Оренда будинків і приміщень та експлуатаційні витрати (прибирання, страхування орендованих будинків, охорона, сигналізація, ремонт, вивіз сміття, тощо)",Оренда нерухомості,48485,Центральний офіс,39688832,Україна,"Оренда приміщення за липень 2017 згідно умов договору від 2016-12-27 №4, рахунок від 31.07.17 №378. у т.ч. ПДВ 20% - 393.20 грн.",919687,current,2359.20,"ТОВ ""ВВ Інвест""",32455634,юридична особа
Справедливість,"Рівненська область, Рівне",52,2017-08-10,платіжне доручення № 68,Інша реклама (без класифікації),Реклама (без класифікації),48507,Рівненська обласна організація,40017968,Рівненська область,Оплата за розмiщення рекламних матерiалiв згiдно рахунку - фактури N СФ-0000150 вiд 04.08.р. Без ПДВ,26006054726027,current,10200.00,Грицюк С С,,фізична особа
Справедливість,"Київ, вулиця Михайла Грушевського, 1Д",70,2017-08-10,8AO0B1BLFY,Банківські послуги,Інші витрати,48481,Рівненська обласна організація,40017968,Рівненська область,"Комiсiя за виконання платежiв в нацiональнiй валютi, згiдно з вiдкритою офертою банку N б/н вiд 2016-11-22 та тарифiв банку, без ПДВ.",26006054726027,current,3.00,"ПАТ КБ ""Приватбанк""",14360570,юридична особа
Справедливість,"Київ, вулиця Миколи Лєскова, 9",70,2017-07-31,Bn_1,Банківські послуги,Інші витрати,48476,Центральний офіс,39688832,Україна,"Комісія за ведення поточних рахунків клієнта ППГПР ""В. НАЛИВАЙЧЕНКА СПРАВЕДЛІСТЬ"" в дирек. 26-Київ за період з 2017-06-30 по 2017-07-30, без ПДВ",26000532822,current,250.00,"АТ ""Райффайзен банк Аваль""",14305909,юридична особа
Справедливість,"Київ, вулиця Миколи Лєскова, 9",70,2017-07-31,bn,Банківські послуги,Інші витрати,48475,Центральний офіс,39688832,Україна,"Комісія за вихідні перекази в нац. валюті (Клієнт-банк) з 2017-06-30 по 2017-07-30 по рах №26000532822 (UAH) 2*2=4грн., без ПДВ",26000532822,current,4.00,"АТ ""Райффайзен банк Аваль""",14305909,юридична особа
Справедливість,"Київ, вулиця Старовокзальна, 7В, 18",79,2017-07-14,16,"Оренда будинків і приміщень та експлуатаційні витрати (прибирання, страхування орендованих будинків, охорона, сигналізація, ремонт, вивіз сміття, тощо)",Оренда нерухомості,48484,Центральний офіс,39688832,Україна,"Оренда приміщення за червень 2017 згідно умов договору від 2016-12-27 №4, рахунок від 30.06.17 №320. у т.ч. ПДВ 20% - 393.20 грн.",919687,current,2359.20,"ТОВ ""ВВ Інвест""",32455634,юридична особа
Справедливість,"Київ, вулиця Новомостицька, 2",51,2017-07-11,15,Оплата ефірного часу на ТБ,Телереклама,48493,Центральний офіс,39688832,Україна,За розміщення реклами в липні 2017 року згідно з Договором від 2017-07-06 № 0607/17 та рахунком від 2017-07-06 № 77 у т.ч. ПДВ 20% - 47000.00 грн.,26000532822,current,282000.00,"ТОВ ""Лайф-Медіа""",37569931,юридична особа
Справедливість,"Київ, вулиця Миколи Лєскова, 9",70,2017-06-30,Bn_5,Банківські послуги,Інші витрати,48515,Центральний офіс,39688832,Україна,"Комісія за ведення поточних рахунків клієнта ППГПР ""В. НАЛИВАЙЧЕНКА СПРАВЕДЛІСТЬ"" в дирек. 26-Київ за період з 2017-05-31 по 2017-06-29, без ПДВ",26000532822,current,250.00,"АТ ""Райффайзен банк Аваль""",14305909,юридична особа
Справедливість,"Київ, вулиця Миколи Лєскова, 9",70,2017-06-30,Bn_4,Банківські послуги,Інші витрати,48514,Центральний офіс,39688832,Україна,"Комісія за вихідні перекази в нац. валюті (Клієнт-банк) з 2017-05-31 по 2017-06-29 по рах №26000532822 (ЛАН) 2*2=4грн., без ПДВ",26000532822,current,4.00,"АТ ""Райффайзен банк Аваль""",14305909,юридична особа
Справедливість,"Київ, вулиця Хрещатик, 4",52,2017-06-27,14,Інша реклама (без класифікації),Реклама (без класифікації),48516,Центральний офіс,39688832,Україна,"Оплата згідно з договором від 2017-06-29р. №4068/Д та рахунком від 2017-06-26р. №РЛА00000887,у т.ч.ПДВ 20%-586,67 грн.",26000532822,current,3520.00,"ТОВ ""Українське незалежне інформаційне агенство""",21452108,юридична особа
Справедливість,"Київ, вулиця Старовокзальна, 7В, 18",79,2017-06-14,12_1,"Оренда будинків і приміщень та експлуатаційні витрати (прибирання, страхування орендованих будинків, охорона, сигналізація, ремонт, вивіз сміття, тощо)",Оренда нерухомості,48519,Центральний офіс,39688832,Україна,"Оренда приміщення за травень 2017 згідно умов договору від 2016-12-27 №4, рахунок від 31.05.17 №263, у т.ч. ПДВ 20%-393,20 грн.",26000532822,current,2359.20,"ТОВ ""ВВ Інвест""",32455634,юридична особа
Справедливість,"Київ, вулиця Миколи Лєскова, 9",70,2017-05-31,Bn_3,Банківські послуги,Інші витрати,48513,Центральний офіс,39688832,Україна,"Комісія за ведення поточних рахунків клієнта ППГПР ""В. НАЛИВАЙЧЕНКА СПРАВЕДЛІСТЬ"" в дирек. 26-Київ за період з 2017-04-28 по 2017-05-30, без ПДВ",26000532822,current,250.00,"АТ ""Райффайзен банк Аваль""",14305909,юридична особа
Справедливість,"Київ, вулиця Миколи Лєскова, 9",70,2017-05-31,Bn_2,Банківські послуги,Інші витрати,48512,Центральний офіс,39688832,Україна,"Комісія за вихідні перекази в нац. валюті (Клієнт-банк) з 2017-04-28 по 2017-05-30 по рах №26000532822 (ЛАН) 1*2=2грн., без ПДВ",26000532822,current,2.00,"АТ ""Райффайзен банк Аваль""",14305909,юридична особа
Справедливість,"Київ, вулиця Старовокзальна, 7В, 18",79,2017-05-18,12,"Оренда будинків і приміщень та експлуатаційні витрати (прибирання, страхування орендованих будинків, охорона, сигналізація, ремонт, вивіз сміття, тощо)",Оренда нерухомості,48518,Центральний офіс,39688832,Україна,"Оренда приміщення за квітень 2017 згідно умов договору від 2016-12-27 №4, рахунок від 30.04.17 №200, у т.ч. ПДВ 20%-393,20 грн.",26000532822,current,2359.20,"ТОВ ""ВВ Інвест""",32455634,юридична особа
Справедливість,"Київ, вулиця Миколи Лєскова, 9",70,2017-04-28,Bn_1,Банківські послуги,Інші витрати,48511,Центральний офіс,39688832,Україна,"Комісія за ведення поточних рахунків клієнта ППГПР ""В. НАЛИВАЙЧЕНКА СПРАВЕДЛІСТЬ"" в дирек. 26-Київ за період з 2017-03-31 по 2017-04-27, без ПДВ",26000532822,current,250.00,"АТ ""Райффайзен банк Аваль""",14305909,юридична особа
Справедливість,"Київ, вулиця Миколи Лєскова, 9",70,2017-04-28,bn,Банківські послуги,Інші витрати,48510,Центральний офіс,39688832,Україна,"Комісія за вихідні перекази в нац. валюті (Клієнт-банк) з 2017-03-31 по 2017-04-27 по рах №26000532822 (ИАН) 4*2=8грн., без ПДВ",26000532822,current,8.00,"АТ ""Райффайзен банк Аваль""",14305909,юридична особа
Справедливість,"Київ, вулиця Хрещатик, 26",51,2017-04-13,10,Оплата ефірного часу на ТБ,Телереклама,48520,Центральний офіс,39688832,Україна,"За надання послуг на телебаченні в квітні 2017 згідно з договором від 2017-04-11 №30/2017 та рахунку від 2017-04-11 №58/2017 у т.ч. ПДВ 20% - 300,00 грн.",26000532822,current,1800.00,"Філія ПАТ ""НСТУ"" ""Київська РД""",40020588,юридична особа
Справедливість,"Київська обл., Києво-Святошинський район, Вишневе",66,2017-04-12,N1BQ541158,Повернення внесків приватних внесків (донорам),Повернення приватних внесків (донорам),48522,Центральний офіс,39688832,Україна,Повернення коштів Чорненко Юрій Володимирович для уточнення даних платника. Платіжний документ від 2016-04-05,26000532822,current,120.00,Чорненко Юрій Володимирович,,фізична особа
Справедливість,"Київська обл., Києво-Святошинський район, Вишневе",66,2017-04-12,N1BQ541107,Повернення внесків приватних внесків (донорам),Повернення приватних внесків (донорам),48521,Центральний офіс,39688832,Україна,Повернення коштів Чорненко Юрій Володимирович для уточнення даних платника. Платіжний документ від 2016-04-05,26000532822,current,20.00,Чорненко Юрій Володимирович,,фізична особа
Справедливість,"Київ, вулиця Старовокзальна, 7В, 18",79,2017-04-12,9,"Оренда будинків і приміщень та експлуатаційні витрати (прибирання, страхування орендованих будинків, охорона, сигналізація, ремонт, вивіз сміття, тощо)",Оренда нерухомості,48517,Центральний офіс,39688832,Україна,"Оренда приміщення за березень 2017 згідно умов договору від 2016-12-27 №4, рахунок від 31.03.17 №143",26000532822,current,2359.20,"ТОВ ""ВВ Інвест""",32455634,юридична особа
Справедливість,"Київ, вулиця Миколи Лєскова, 9",70,2017-03-31,Bn_19,Банківські послуги,Інші витрати,48528,Центральний офіс,39688832,Україна,"Комісія за ведення поточних рахунків клієнта ППГПР В НАЛИВАЙЧЕН СПРАВЕДЛІСТ в дирек. 26-Київ за період з 28.02.17 по 30.03.17, без ПДВ",26000532822,current,250.00,"АТ ""Райффайзен банк Аваль""",14305909,юридична особа
Справедливість,"Київ, вулиця Миколи Лєскова, 9",70,2017-03-31,Bn_18,Банківські послуги,Інші витрати,48527,Центральний офіс,39688832,Україна,"Комісія за вих перекази в нац валюті (Клієнт-Банк) з 28.02.17 по 30.03.17 по рах №26000532822(ЦГЛН) 2*2=4 грн, без ПДВ",26000532822,current,4.00,"АТ ""Райффайзен банк Аваль""",14305909,юридична особа
Справедливість,"Київ, вулиця Старовокзальна, 7В, 18",79,2017-03-16,6,"Оренда будинків і приміщень та експлуатаційні витрати (прибирання, страхування орендованих будинків, охорона, сигналізація, ремонт, вивіз сміття, тощо)",Оренда нерухомості,48532,Центральний офіс,39688832,Україна,"Оренда приміщення за лютий 2017 згідно умов договору від 2016-12-27 №4, рахунок від 28.02.17 №74. у т.ч. ПДВ 20% - 393.20 грн.",26000532822,current,2359.20,"ТОВ ""ВВ Інвест""",32455634,юридична особа
Справедливість,"Закарпатська область, Перечинський район, Туриця",53,2017-03-10,5,Витрати на розміщення зовнішньої реклами,Зовнішня реклама,48534,Центральний офіс,39688832,Україна,Розміщення реклами на білборді згідно з рахунком від 2017-02-22 №1 та договору від 20.02.17 №20/02.,26000532822,current,2400.00,Фрайтик Сергій Іванович,2468219233,фізична особа
Справедливість,"Київ, вулиця Миколи Лєскова, 9",70,2017-02-28,Bn_17,Банківські послуги,Інші витрати,48526,Центральний офіс,39688832,Україна,"Комісія за ведення поточних рахунків клієнта ППГПР В НАЛИВАЙЧЕН СПРАВЕДЛІСТ в дирек. 26-Київ за період з 31.01.17 по 27.02.17, без ПДВ",26000532822,current,250.00,"АТ ""Райффайзен банк Аваль""",14305909,юридична особа
Справедливість,"Київ, вулиця Миколи Лєскова, 9",70,2017-02-28,Bn_16,Банківські послуги,Інші витрати,48525,Центральний офіс,39688832,Україна,"Комісія за вих перекази в нац валюті (Клієнт-Банк) з 31.01.17 по 27.02.17 по рах №26000532822(ЦГЛН) 2*2=4 грн, без ПДВ",26000532822,current,4.00,"АТ ""Райффайзен банк Аваль""",14305909,юридична особа
Справедливість,"Київ, вулиця Старовокзальна, 7В, 18",79,2017-02-14,4_1,"Оренда будинків і приміщень та експлуатаційні витрати (прибирання, страхування орендованих будинків, охорона, сигналізація, ремонт, вивіз сміття, тощо)",Оренда нерухомості,48531,Центральний офіс,39688832,Україна,"Оренда приміщення за січень 2017 згідно умов договору від 2016-12-27 №4, рахунок від 31.01.17 №8.",26000532822,current,2339.20,"ТОВ ""ВВ Інвест""",32455634,юридична особа
Справедливість,"Київ, вулиця Старовокзальна, 7В, 18",79,2017-02-03,3,"Оренда будинків і приміщень та експлуатаційні витрати (прибирання, страхування орендованих будинків, охорона, сигналізація, ремонт, вивіз сміття, тощо)",Оренда нерухомості,48530,Центральний офіс,39688832,Україна,Оренда приміщення за останній місяць згідно умов договору від 2016-12-27 №4.,26000532822,current,2220.00,"ТОВ ""ВВ Інвест""",32455634,юридична особа
Справедливість,"Київ, вулиця Миколи Лєскова, 9",70,2017-01-31,Bn_21,Банківські послуги,Інші витрати,48524,Центральний офіс,39688832,Україна,"Комісія за ведення поточних рахунків клієнта ППГПР В НАЛИВАЙЧЕН СПРАВЕДЛІСТ в дирек. 26-Київ за період з 30.12.16 по 30.01.17, без ПДВ",26000532822,current,250.00,"АТ ""Райффайзен банк Аваль""",14305909,юридична особа
Справедливість,"Київ, вулиця Миколи Лєскова, 9",70,2017-01-31,Bn_20,Банківські послуги,Інші витрати,48523,Центральний офіс,39688832,Україна,"Комісія за вих перекази в нац валюті (Клієнт-Банк) з 30.12.16 по 30.01.17 по рах №26000532822^АН) 2*2=4 грн, без ПДВ",26000532822,current,4.00,"АТ ""Райффайзен банк Аваль""",14305909,юридична особа
Справедливість,"Київ, вулиця Межигірська, 5, 18",82,2017-01-25,2,"Гонорари, в тому числі за надані консультаційні послуги","Гонорари, в тому числі за надані консультаційні послуги",48533,Центральний офіс,39688832,Україна,"Консультування з питань інформатизації: надання поновлень конфігурації ""Бух.облік для НПО України"" на базі платформи 1С: Підприємство 8 бухгалтерський облік.",26000532822,current,486.00,"ТОВ ""Ц.І.Т.""",37037811,юридична особа
Справедливість,"Львівська область, Львів, вулиця Князя Романа, 12",50,2017-01-13,1_3,Оплата ефірного часу на радіо,Реклама на радіо,48529,Центральний офіс,39688832,Україна,Інформаційні послуги Трансляція вітання з нагоди Нового Року та Різдва Христового,26000532822,current,1527.28,"ТОВ ""Радіоінформаційний центр ""Незалежність""",20851970,юридична особа
